fUSD/lending_fUSD_20250126
["ID","MTS","AMOUNT","RATE_DAILY","PERIOD"]
[350424898,1737868232477,-782.0,0.0001113,2]
[350424899,1737868232487,-1262.0,0.0001113,2]
[350424900,1737868232498,-538.0,0.0001113,2]
[350424901,1737868232508,-3987.0,0.0001113,2]
[350424902,1737868232517,-150.0,0.0001113,2]
[350424903,1737868232526,-150.0,0.0001113,2]
[350424904,1737868232535,-1177.0,0.0001113,2]
[350424905,1737868232545,-3905.0,0.0001113,2]
[350424906,1737868232555,-1107.0,0.0001113,2]
[350424907,1737868232564,-250.0,0.00011131,2]
[350424908,1737868232574,-250.0,0.00011137,2]
[350424909,1737868232583,-1000.0,0.00011142,2]
[350424910,1737868232592,-928.13,0.00011279,2]
[350424911,1737868232602,-500.0,0.00011279,2]
[350424912,1737868232611,-500.0,0.00011279,2]
[350424913,1737868232620,-1270.0,0.000113,2]
[350424914,1737868232630,-2020.0,0.000113,2]
[350424915,1737868232640,-218.11965221,0.00011316,2]
[350424916,1737868232663,-111.08034779,0.00011316,2]
[350424917,1737868232673,-172.15,0.00011391,2]
[350424918,1737868232682,-296.13318415,0.00011561,2]
[350424919,1737868232693,-500.0,0.00011561,2]
[350424920,1737868232705,-47.67681585,0.00011561,2]
[350424921,1737868232714,-430.87570697,0.00011613,2]
[350424922,1737868232723,-305.17243718,0.0001176,2]
[350424923,1737868232750,-738.86496476,0.0001176,2]
[350424924,1737868232759,-3284.4823574,0.0001176,2]
[350424925,1737868232769,-1961.069,0.00011801,2]
[350424926,1737868232778,-175.417,0.00011801,2]
[350424927,1737868232787,-5000.0,0.000119,2]
[350424928,1737868232797,-164.29648912,0.000119,2]
[350424929,1737868232808,-14280.50608537,0.000119,2]
[350424930,1737868232817,-1339.18098178,0.000119,2]
[350424932,1737868232827,-873.95086604,0.000119,2]
[350424934,1737868232836,-212.74358679,0.000119,2]
[350424935,1737868232845,-500.0,0.00011973,2]
[350424936,1737868232854,-151.69992986,0.00011973,2]
[350424937,1737868232863,-361.8924822,0.00011973,2]
[350424938,1737868232872,-500.0,0.00011999,2]
[350424939,1737868232881,-483.83387188,0.00012,2]
[350424940,1737868232890,-197.84353593,0.00012,2]
[350424941,1737868232900,-164211.13597946,0.00012,2]
[350424942,1737868232911,-18081.38597511,0.00012,2]
[350424943,1737868232922,-51728.55762353,0.00012,2]
[350424944,1737868232931,-136859.1615108,0.00012,2]
[350424945,1737868232978,-695.54985407,0.00012,2]
[350424946,1737868232989,-397.92779334,0.00012,2]
[350424947,1737868233095,-3115.35812319,0.00012,2]
[350424948,1737868233116,-336.50062,0.00012,2]
[350424949,1737868233128,-1192.53928917,0.00012,2]
[350424951,1737868238606,-3678.03746018,0.000119,2]
[350424960,1737868240414,-4588.32377988,0.000119,2]
[350424961,1737868240423,-11955.55173328,0.00012,2]
[350424962,1737868240437,-45077.36587211,0.00012,2]
[350424963,1737868240664,-1046.3,0.00012,2]
[350424964,1737868240721,-395.83531905,0.00012,2]
[350424972,1737868243395,-281.83801227,0.000119,2]
[350424973,1737868243406,-3382.44193395,0.00012,2]
[350424974,1737868243664,-1228.49761,0.00012,2]
[350424976,1737868246422,-410970.64702132,0.00012,2]
[350424977,1737868246479,-1138.760818,0.00012,2]
[350425018,1737869318937,150.0,0.0001052,5]
[350425026,1737869419079,817.27,8.878e-05,2]
[350425028,1737869431507,-225.51300384,9.828e-05,2]
[350425030,1737869431516,-165.38,0.00010137,2]
[350425032,1737869431526,-250.0,0.00010783,2]
[350425034,1737869431535,-835.54881091,0.000108,2]
[350425035,1737869431574,-1579.79996,0.000108,2]
[350425036,1737869431681,-4100.0,0.000108,2]
[350425037,1737869431848,-1025.55818525,0.000108,2]
[350425039,1737869432020,-7716.44762628,0.000108,2]
[350425041,1737869432030,-634.87,0.00010856,2]
[350425043,1737869432040,-1045.0539,0.00010856,2]
[350425045,1737869432050,-31570.16759068,0.000109,2]
[350425056,1737869437478,-804.1104581,0.000109,2]
[350425057,1737869437489,-16118.19854842,0.000109,2]
[350425058,1737869437533,-6614.35301153,0.000109,2]
[350425059,1737869437650,-114978.73302573,0.000109,2]
[350425060,1737869437766,-1497.16978913,0.000109,2]
[350425061,1737869437779,-467.46624105,0.000109,2]
[350425066,1737869439551,-624.79062538,0.000109,2]
[350425067,1737869439626,-1316.13084235,0.000109,2]
[350425068,1737869439637,-1047.194496,0.000109,2]
[350425069,1737869439739,-82120.2714392,0.000109,2]
[350425070,1737869439751,-9096.64373114,0.000109,2]
[350425071,1737869439763,-8947.21879473,0.000109,2]
[350425072,1737869439774,-8943.78386462,0.000109,2]
[350425073,1737869439785,-9077.54866152,0.000109,2]
[350425074,1737869439798,-8943.84023489,0.000109,2]
[350425075,1737869439808,-3476.04207273,0.000109,2]
[350425080,1737869442653,-398.0966,0.000108,2]
[350425081,1737869442663,-1897.3527533,0.000109,2]
[350425082,1737869442712,-8458.8754854,0.000109,2]
[350425083,1737869442728,-365.78550015,0.000109,2]
[350425084,1737869442774,-253.45,0.000109,2]
[350425087,1737869445480,-177219.14438853,0.000109,2]
[350425088,1737869445492,-3785.15416186,0.000109,2]
[350425089,1737869445541,-408.35146807,0.000109,2]
[350425090,1737869445561,-19315.63849987,0.000109,2]
[350425091,1737869445605,-2852.5,0.000109,2]
[350425092,1737869445616,-222250.21180438,0.000109,2]
[350425093,1737869445626,-1431.7,0.00010958,2]
[350425094,1737869445635,-1431.7,0.00010958,2]
[350425095,1737869445644,-1431.7,0.00010958,2]
[350425096,1737869445654,-5463.34,0.00010958,2]
[350425097,1737869445663,-5463.34,0.00010958,2]
[350425098,1737869445672,-5463.34,0.00010958,2]
[350425099,1737869445681,-5068.76,0.00010958,2]
[350425100,1737869445691,-5068.76,0.00010958,2]
[350425101,1737869445701,-5068.76,0.00010958,2]
[350425102,1737869445710,-3861.53,0.00010958,2]
[350425103,1737869445723,-3861.53,0.00010958,2]
[350425104,1737869445733,-3861.53,0.00010958,2]
[350425105,1737869445743,-864.24,0.00010958,2]
[350425106,1737869445752,-864.24,0.00010958,2]
[350425107,1737869445763,-864.24,0.00010958,2]
[350425108,1737869445772,-2690.06,0.00010958,2]
[350425109,1737869445782,-2690.06,0.00010958,2]
[350425110,1737869445791,-2690.06,0.00010958,2]
[350425111,1737869445802,-5427.76,0.00010958,2]
[350425112,1737869445811,-4482.82497198,0.00010958,2]
[350425113,1737869445864,-944.93502802,0.00010958,2]
[350425114,1737869445873,-5427.76,0.00010958,2]
[350425115,1737869445883,-863.29,0.00010958,2]
[350425116,1737869445892,-863.29,0.00010958,2]
[350425118,1737869445901,-863.29,0.00010958,2]
[350425119,1737869445910,-500.0,0.00010958,2]
[350425120,1737869445920,-500.0,0.00010958,2]
[350425121,1737869445930,-500.0,0.00010958,2]
[350425122,1737869445940,-2267.35,0.00010958,2]
[350425123,1737869445950,-2267.35,0.00010958,2]
[350425124,1737869445960,-615.73,0.00010958,2]
[350425125,1737869445969,-2267.35,0.00010958,2]
[350425126,1737869445978,-615.73,0.00010958,2]
[350425127,1737869445987,-615.73,0.00010958,2]
[350425128,1737869445996,-198.58467402,0.00010958,2]
[350425129,1737869446006,-500.0,0.00010958,2]
[350425130,1737869446015,-500.0,0.00010958,2]
[350425131,1737869446026,-500.0,0.00010958,2]
[350425132,1737869446036,-500.0,0.00010958,2]
[350425133,1737869446046,-500.0,0.00010958,2]
[350425134,1737869446056,-500.0,0.00010958,2]
[350425135,1737869446065,-500.0,0.00010958,2]
[350425136,1737869446075,-500.0,0.00010958,2]
[350425137,1737869446084,-590.78,0.00010958,2]
[350425138,1737869446093,-500.0,0.00010958,2]
[350425139,1737869446105,-590.78,0.00010958,2]
[350425140,1737869446114,-590.78,0.00010958,2]
[350425141,1737869446124,-1366.14,0.00010958,2]
[350425142,1737869446135,-1366.14,0.00010958,2]
[350425143,1737869446145,-1366.14,0.00010958,2]
[350425144,1737869446155,-500.0,0.00010958,2]
[350425145,1737869446164,-500.0,0.00010958,2]
[350425146,1737869446173,-831.43,0.00010958,2]
[350425147,1737869446182,-500.0,0.00010958,2]
[350425148,1737869446191,-831.43,0.00010958,2]
[350425149,1737869446200,-831.43,0.00010958,2]
[350425150,1737869446210,-500.0,0.00010958,2]
[350425151,1737869446220,-500.0,0.00010958,2]
[350425152,1737869446229,-500.0,0.00010958,2]
[350425153,1737869446239,-1001.47,0.00010958,2]
[350425154,1737869446248,-1001.47,0.00010958,2]
[350425155,1737869446257,-1001.47,0.00010958,2]
[350425156,1737869446267,-1015.8,0.00010958,2]
[350425157,1737869446276,-3972.92,0.00010958,2]
[350425158,1737869446285,-1015.8,0.00010958,2]
[350425159,1737869446295,-3972.92,0.00010958,2]
[350425160,1737869446304,-1015.8,0.00010958,2]
[350425161,1737869446313,-3972.92,0.00010958,2]
[350425162,1737869446322,-500.0,0.00010958,2]
[350425163,1737869446331,-500.0,0.00010958,2]
[350425164,1737869446340,-500.0,0.00010958,2]
[350425165,1737869446349,-500.0,0.00010958,2]
[350425166,1737869446358,-500.0,0.00010958,2]
[350425167,1737869446367,-500.0,0.00010958,2]
[350425168,1737869446377,-1756.53,0.00010958,2]
[350425169,1737869446385,-500.0,0.00010958,2]
[350425170,1737869446395,-500.0,0.00010958,2]
[350425171,1737869446406,-1756.53,0.00010958,2]
[350425172,1737869446415,-500.0,0.00010958,2]
[350425173,1737869446425,-1756.53,0.00010958,2]
[350425174,1737869446434,-500.0,0.00010958,2]
[350425175,1737869446444,-500.0,0.00010958,2]
[350425176,1737869446453,-500.0,0.00010958,2]
[350425177,1737869446462,-500.0,0.00010958,2]
[350425178,1737869446472,-500.0,0.00010958,2]
[350425179,1737869446483,-500.0,0.00010958,2]
[350425180,1737869446492,-500.0,0.00010958,2]
[350425181,1737869446502,-500.0,0.00010958,2]
[350425182,1737869446511,-1660.12,0.00010958,2]
[350425183,1737869446520,-500.0,0.00010958,2]
[350425184,1737869446529,-1660.12,0.00010958,2]
[350425185,1737869446539,-1660.12,0.00010958,2]
[350425186,1737869446548,-500.0,0.00010958,2]
[350425187,1737869446559,-166.06814338,0.00010958,2]
[350425188,1737869446568,-172.15,0.00010962,2]
[350425189,1737869446578,-250.0,0.00010973,2]
[350425190,1737869446588,-817.27,0.00011142,2]
[350425191,1737869446597,-1177.0,0.00011188,2]
[350425192,1737869446608,-1270.0,0.00011188,2]
[350425193,1737869446617,-638.0,0.00011188,2]
[350425194,1737869446627,-2500.0,0.000113,2]
[350425195,1737869446637,-2500.0,0.000113,2]
[350425196,1737869446647,-174.54,0.00011361,2]
[350425197,1737869446656,-999.99,0.00011361,2]
[350425198,1737869446666,-150.99,0.00011361,2]
[350425199,1737869446675,-1000.0,0.00011382,2]
[350425200,1737869446684,-8835.09,0.00011382,2]
[350425201,1737869446694,-929.48,0.00011382,2]
[350425202,1737869446703,-9999.99,0.00011382,2]
[350425203,1737869446713,-150.99,0.00011382,2]
[350425204,1737869446726,-1314.81,0.00011382,2]
[350425205,1737869446735,-9999.99,0.00011382,2]
[350425206,1737869446744,-499.99,0.00011382,2]
[350425207,1737869446754,-6643.32,0.00011382,2]
[350425208,1737869446763,-129403.74853402,0.000114,2]
[350425209,1737869446774,-1865.0,0.000114,2]
[350425210,1737869446783,-907.0,0.000114,2]
[350425211,1737869446792,-2950.0,0.000114,2]
[350425212,1737869446805,-782.0,0.000114,2]
[350425213,1737869446816,-1262.0,0.000114,2]
[350425214,1737869446825,-538.0,0.000114,2]
[350425215,1737869446836,-3987.0,0.000114,2]
[350425216,1737869446846,-150.0,0.000114,2]
[350425217,1737869446856,-3905.0,0.000114,2]
[350425218,1737869446866,-150.0,0.000114,2]
[350425219,1737869446875,-2020.0,0.000114,2]
[350425220,1737869446884,-909.02,0.00011446,2]
[350425221,1737869446894,-419.04,0.0001154,2]
[350425222,1737869446903,-430.87570697,0.00011629,2]
[350425223,1737869446913,-1971.1660704,0.0001176,2]
[350425224,1737869446924,-181.926,0.00011867,2]
[350425225,1737869446942,-1828.274,0.00011867,2]
[350425226,1737869446952,-5000.0,0.00011898,2]
[350425227,1737869446961,-784.85,0.00011899,2]
[350425228,1737869446971,-511.95604012,0.00011899,2]
[350425229,1737869446980,-500.0,0.00011899,2]
[350425230,1737869446989,-500.0,0.00011899,2]
[350425231,1737869447005,-500.0,0.00011899,2]
[350425232,1737869447018,-500.0,0.00011899,2]
[350425233,1737869447028,-841.46,0.00011899,2]
[350425234,1737869447037,-500.0,0.00011899,2]
[350425235,1737869447046,-500.0,0.00011899,2]
[350425236,1737869447056,-513.92557817,0.00011899,2]
[350425237,1737869447066,-500.0,0.00011899,2]
[350425238,1737869447075,-503.04652745,0.00011899,2]
[350425239,1737869447085,-500.0,0.00011899,2]
[350425240,1737869447094,-526.3,0.00011899,2]
[350425241,1737869447104,-501.38980051,0.00011899,2]
[350425242,1737869447113,-1022.39,0.00011899,2]
[350425243,1737869447123,-500.0,0.00011899,2]
[350425244,1737869447132,-500.0,0.00011899,2]
[350425245,1737869447142,-500.0,0.00011899,2]
[350425246,1737869447151,-164.29648912,0.00011899,2]
[350425247,1737869447160,-160.57177166,0.000119,2]
[350425248,1737869447170,-160.57177166,0.000119,2]
[350425249,1737869447179,-160.57177166,0.000119,2]
[350425250,1737869447189,-160.57177166,0.000119,2]
[350425251,1737869447198,-160.57177166,0.000119,2]
[350425252,1737869447207,-159.5576901,0.000119,2]
[350425253,1737869447217,-178.16255009,0.00011987,2]
[350425254,1737869447227,-1001.47,0.00011995,2]
[350425255,1737869447238,-1756.53,0.00011995,2]
[350425256,1737869447247,-500.0,0.00011995,2]
[350425257,1737869447256,-2619.94,0.00011996,2]
[350425258,1737869447266,-1893.5,0.00011996,2]
[350425259,1737869447276,-1431.7,0.00011996,2]
[350425260,1737869447285,-1431.7,0.00011996,2]
[350425261,1737869447295,-1649.91,0.00011996,2]
[350425262,1737869447304,-5463.34,0.00011996,2]
[350425263,1737869447314,-5463.34,0.00011996,2]
[350425264,1737869447324,-3242.85,0.00011996,2]
[350425265,1737869447333,-500.0,0.00011996,2]
[350425266,1737869447343,-5068.76,0.00011996,2]
[350425267,1737869447352,-5068.76,0.00011996,2]
[350425268,1737869447362,-3861.53,0.00011996,2]
[350425269,1737869447371,-3303.84,0.00011996,2]
[350425270,1737869447380,-3861.53,0.00011996,2]
[350425271,1737869447390,-1078.65,0.00011996,2]
[350425272,1737869447399,-864.24,0.00011996,2]
[350425273,1737869447408,-864.24,0.00011996,2]
[350425274,1737869447419,-2946.36,0.00011996,2]
[350425275,1737869447428,-2690.06,0.00011996,2]
[350425276,1737869447438,-2690.06,0.00011996,2]
[350425277,1737869447448,-176.54400804,0.00011996,2]
[350425278,1737869447458,-5187.87,0.00011996,2]
[350425279,1737869447468,-5427.76,0.00011996,2]
[350425280,1737869447477,-1186.78076704,0.00011996,2]
[350425302,1737870278800,789.92,8.381e-05,2]
[350425328,1737870631941,-540.54727959,0.0001,2]
[350425329,1737870631954,-722.54233573,0.0001,2]
[350425330,1737870632015,-383.65038468,0.0001,2]
[350425331,1737870632025,-250.0,0.00010028,2]
[350425332,1737870632034,-1000.0,0.00010059,2]
[350425333,1737870632043,-3996.87,0.00010083,2]
[350425334,1737870632053,-371.19,0.00010137,2]
[350425335,1737870632063,-221.54,0.00010137,2]
[350425336,1737870632072,-335.23,0.00010139,2]
[350425337,1737870632082,-1572.05,0.00010164,2]
[350425338,1737870632091,-300.0,0.00010485,2]
[350425339,1737870632100,-442.07,0.00010486,2]
[350425341,1737870632110,-169.79,0.00010551,2]
[350425343,1737870632122,-200.433105,0.0001056,2]
[350425344,1737870632136,-9999.99,0.00010644,2]
[350425345,1737870632146,-4229.14,0.00010644,2]
[350425346,1737870632156,-789.92,0.00010645,2]
[350425347,1737870632167,-413.44177979,0.00010645,2]
[350425348,1737870632178,-492.18846894,0.00010645,2]
[350425353,1737870632268,-94.35975127,0.00010645,2]
[350425355,1737870632277,-150.99,0.00010645,2]
[350425356,1737870632287,-599.43,0.00010645,2]
[350425357,1737870632295,-150.0,0.00010712,2]
[350425358,1737870632304,-181.92610789,0.00010739,2]
[350425359,1737870632314,-1545.01114084,0.00010739,2]
[350425360,1737870632333,-185.57585916,0.00010739,2]
[350425362,1737870632343,-250.0,0.00010798,2]
[350425363,1737870632352,-164.29648912,0.00010858,2]
[350425364,1737870632361,-471.8839,0.00010858,2]
[350425365,1737870632371,-771.06449728,0.00010957,2]
[350425366,1737870632383,-237.68573788,0.00010957,2]
[350425367,1737870632392,-228.74356251,0.00010958,2]
[350425368,1737870632421,-271.25643749,0.00010958,2]
[350425369,1737870632431,-500.0,0.00010958,2]
[350425370,1737870632440,-500.0,0.00010958,2]
[350425371,1737870632449,-500.0,0.00010958,2]
[350425372,1737870632459,-500.0,0.00010958,2]
[350425373,1737870632468,-500.0,0.00010958,2]
[350425374,1737870632478,-500.0,0.00010958,2]
[350425375,1737870632489,-500.0,0.00010958,2]
[350425376,1737870632498,-500.0,0.00010958,2]
[350425377,1737870632507,-884.33,0.00010958,2]
[350425378,1737870632516,-884.33,0.00010958,2]
[350425379,1737870632525,-884.33,0.00010958,2]
[350425380,1737870632534,-500.0,0.00010958,2]
[350425381,1737870632544,-500.0,0.00010958,2]
[350425382,1737870632553,-500.0,0.00010958,2]
[350425383,1737870632562,-500.0,0.00010958,2]
[350425384,1737870632571,-500.0,0.00010958,2]
[350425385,1737870632580,-500.0,0.00010958,2]
[350425386,1737870632589,-500.0,0.00010958,2]
[350425387,1737870632600,-500.0,0.00010958,2]
[350425388,1737870632610,-500.0,0.00010958,2]
[350425389,1737870632619,-500.0,0.00010958,2]
[350425390,1737870632628,-500.0,0.00010958,2]
[350425391,1737870632637,-500.0,0.00010958,2]
[350425392,1737870632646,-500.0,0.00010958,2]
[350425393,1737870632655,-372.52892063,0.00010958,2]
[350425394,1737870632664,-500.0,0.00010958,2]
[350425395,1737870632673,-500.0,0.00010958,2]
[350425396,1737870632682,-500.0,0.00010958,2]
[350425397,1737870632691,-500.0,0.00010958,2]
[350425398,1737870632699,-500.0,0.00010958,2]
[350425399,1737870632708,-162.67031892,0.00010958,2]
[350425400,1737870632717,-500.0,0.00010958,2]
[350425401,1737870632726,-622.1,0.00010958,2]
[350425402,1737870632735,-500.0,0.00010958,2]
[350425403,1737870632745,-500.0,0.00010958,2]
[350425404,1737870632754,-500.0,0.00010958,2]
[350425405,1737870632763,-500.0,0.00010958,2]
[350425406,1737870632772,-500.0,0.00010958,2]
[350425407,1737870632782,-215.66426877,0.00010958,2]
[350425408,1737870632807,-284.33573123,0.00010958,2]
[350425409,1737870632818,-576.28,0.00010958,2]
[350425410,1737870632827,-576.28,0.00010958,2]
[350425411,1737870632836,-576.28,0.00010958,2]
[350425412,1737870632845,-500.0,0.00010958,2]
[350425413,1737870632854,-500.0,0.00010958,2]
[350425414,1737870632863,-500.0,0.00010958,2]
[350425415,1737870632872,-500.0,0.00010958,2]
[350425416,1737870632881,-500.0,0.00010958,2]
[350425417,1737870632890,-500.0,0.00010958,2]
[350425418,1737870632899,-709.63,0.00010958,2]
[350425419,1737870632909,-709.63,0.00010958,2]
[350425420,1737870632918,-709.63,0.00010958,2]
[350425421,1737870632927,-500.0,0.00010958,2]
[350425422,1737870632936,-500.0,0.00010958,2]
[350425423,1737870632946,-500.0,0.00010958,2]
[350425424,1737870632957,-500.0,0.00010958,2]
[350425425,1737870632968,-500.0,0.00010958,2]
[350425426,1737870632977,-500.0,0.00010958,2]
[350425427,1737870632987,-500.0,0.00010958,2]
[350425428,1737870632996,-534.06198198,0.00010958,2]
[350425429,1737870633005,-500.0,0.00010958,2]
[350425430,1737870633015,-500.0,0.00010958,2]
[350425431,1737870633024,-500.0,0.00010958,2]
[350425432,1737870633034,-500.0,0.00010958,2]
[350425433,1737870633043,-500.0,0.00010958,2]
[350425434,1737870633053,-500.0,0.00010958,2]
[350425435,1737870633063,-500.0,0.00010958,2]
[350425436,1737870633073,-500.0,0.00010958,2]
[350425437,1737870633082,-516.60422094,0.00010958,2]
[350425438,1737870633092,-500.0,0.00010958,2]
[350425439,1737870633101,-500.0,0.00010958,2]
[350425440,1737870633111,-500.0,0.00010958,2]
[350425441,1737870633122,-500.0,0.00010958,2]
[350425442,1737870633133,-263.47417247,0.00010958,2]
[350425443,1737870633142,-500.0,0.00010958,2]
[350425444,1737870633151,-500.0,0.00010958,2]
[350425445,1737870633161,-500.0,0.00010958,2]
[350425446,1737870633172,-500.0,0.00010958,2]
[350425447,1737870633182,-500.0,0.00010958,2]
[350425448,1737870633191,-500.0,0.00010958,2]
[350425449,1737870633200,-500.0,0.00010958,2]
[350425450,1737870633210,-500.0,0.00010958,2]
[350425451,1737870633220,-500.0,0.00010958,2]
[350425452,1737870633230,-1207.23,0.00010958,2]
[350425453,1737870633239,-1207.23,0.00010958,2]
[350425454,1737870633249,-1207.23,0.00010958,2]
[350425455,1737870633259,-500.0,0.00010958,2]
[350425456,1737870633268,-500.0,0.00010958,2]
[350425457,1737870633278,-500.0,0.00010958,2]
[350425458,1737870633288,-500.0,0.00010958,2]
[350425459,1737870633299,-500.0,0.00010958,2]
[350425460,1737870633309,-500.0,0.00010958,2]
[350425461,1737870633318,-500.0,0.00010958,2]
[350425462,1737870633327,-500.0,0.00010958,2]
[350425463,1737870633337,-500.0,0.00010958,2]
[350425464,1737870633347,-500.0,0.00010958,2]
[350425465,1737870633356,-670.57,0.00010958,2]
[350425466,1737870633366,-670.57,0.00010958,2]
[350425467,1737870633376,-670.57,0.00010958,2]
[350425468,1737870633386,-500.0,0.00010958,2]
[350425469,1737870633396,-500.0,0.00010958,2]
[350425470,1737870633404,-500.0,0.00010958,2]
[350425471,1737870633413,-500.0,0.00010958,2]
[350425472,1737870633423,-500.0,0.00010958,2]
[350425473,1737870633433,-500.0,0.00010958,2]
[350425474,1737870633443,-500.0,0.00010958,2]
[350425475,1737870633453,-500.0,0.00010958,2]
[350425476,1737870633464,-500.0,0.00010958,2]
[350425477,1737870633473,-502.29,0.00010958,2]
[350425478,1737870633483,-500.0,0.00010958,2]
[350425479,1737870633492,-502.29,0.00010958,2]
[350425480,1737870633502,-500.0,0.00010958,2]
[350425481,1737870633511,-502.29,0.00010958,2]
[350425482,1737870633521,-500.0,0.00010958,2]
[350425483,1737870633531,-500.0,0.00010958,2]
[350425484,1737870633540,-500.0,0.00010958,2]
[350425485,1737870633550,-500.0,0.00010958,2]
[350425486,1737870633560,-827.48,0.00010958,2]
[350425487,1737870633570,-827.48,0.00010958,2]
[350425488,1737870633579,-827.48,0.00010958,2]
[350425489,1737870633589,-500.0,0.00010958,2]
[350425490,1737870633598,-506.47150686,0.00010958,2]
[350425491,1737870633608,-500.0,0.00010958,2]
[350425492,1737870633618,-270.46494837,0.00010958,2]
[350425493,1737870633627,-500.0,0.00010958,2]
[350425494,1737870633636,-500.0,0.00010958,2]
[350425495,1737870633646,-500.0,0.00010958,2]
[350425496,1737870633660,-500.0,0.00010958,2]
[350425497,1737870633669,-500.0,0.00010958,2]
[350425498,1737870633679,-500.0,0.00010958,2]
[350425499,1737870633688,-500.0,0.00010958,2]
[350425500,1737870633697,-500.0,0.00010958,2]
[350425501,1737870633707,-500.0,0.00010958,2]
[350425502,1737870633716,-703.97,0.00010958,2]
[350425503,1737870633726,-703.97,0.00010958,2]
[350425504,1737870633735,-703.97,0.00010958,2]
[350425505,1737870633744,-500.0,0.00010958,2]
[350425506,1737870633753,-500.0,0.00010958,2]
[350425507,1737870633763,-500.0,0.00010958,2]
[350425508,1737870633772,-500.0,0.00010958,2]
[350425509,1737870633782,-500.0,0.00010958,2]
[350425510,1737870633791,-500.0,0.00010958,2]
[350425511,1737870633800,-500.0,0.00010958,2]
[350425512,1737870633810,-500.0,0.00010958,2]
[350425513,1737870633819,-504.23362156,0.00010958,2]
[350425514,1737870633828,-500.0,0.00010958,2]
[350425515,1737870633838,-500.0,0.00010958,2]
[350425516,1737870633847,-500.0,0.00010958,2]
[350425517,1737870633857,-1034.96,0.00010958,2]
[350425518,1737870633867,-1034.96,0.00010958,2]
[350425519,1737870633877,-1034.96,0.00010958,2]
[350425520,1737870633886,-321.6794929,0.00010958,2]
[350425521,1737870633895,-500.0,0.00010958,2]
[350425522,1737870633905,-500.0,0.00010958,2]
[350425523,1737870633914,-500.0,0.00010958,2]
[350425524,1737870633924,-500.0,0.00010958,2]
[350425525,1737870633933,-500.0,0.00010958,2]
[350425526,1737870633943,-500.0,0.00010958,2]
[350425527,1737870633952,-500.0,0.00010958,2]
[350425528,1737870633962,-505.15705705,0.00010958,2]
[350425529,1737870633971,-500.0,0.00010958,2]
[350425530,1737870633981,-500.0,0.00010958,2]
[350425531,1737870633990,-500.0,0.00010958,2]
[350425532,1737870634000,-570.42,0.00010958,2]
[350425533,1737870634010,-570.42,0.00010958,2]
[350425534,1737870634233,-570.42,0.00010958,2]
[350425535,1737870634245,-500.0,0.00010958,2]
[350425536,1737870634255,-500.0,0.00010958,2]
[350425537,1737870634264,-500.0,0.00010958,2]
[350425538,1737870634275,-500.0,0.00010958,2]
[350425539,1737870634285,-500.0,0.00010958,2]
[350425540,1737870634295,-500.0,0.00010958,2]
[350425541,1737870634305,-500.0,0.00010958,2]
[350425542,1737870634315,-500.0,0.00010958,2]
[350425543,1737870634324,-500.0,0.00010958,2]
[350425544,1737870634333,-500.0,0.00010958,2]
[350425545,1737870634342,-557.47895296,0.00010958,2]
[350425546,1737870634351,-500.0,0.00010958,2]